[Event "NJSK 2023 Jeugd C"]
[Site "Almelo, Netherlands"]
[Date "2023.05.03"]
[Round "5.13"]
[White "Klein Tuente, Sam"]
[Black "Etienne, Ghilon"]
[Result "0-1"]
[TimeControl "90min/40moves + 30min + 30sec/move"]
[WhiteElo "1478"]
[BlackElo "1673"]

1. e4 {[%clk 01:30:57]} {[%emt 00:00:02]} e5 {[%clk 01:30:50]} {[%emt
00:00:10]} 2. Nf3 {[%clk 01:31:12]} {[%emt 00:00:16]} Nc6 {[%clk 01:31:05]}
{[%emt 00:00:14]} 3. Bc4 {[%clk 01:31:27]} {[%emt 00:00:15]} Nf6 {[%clk
01:31:18]} {[%emt 00:00:18]} 4. d3 {[%clk 01:31:32]} {[%emt 00:00:25]} h6
{[%clk 01:31:27]} {[%emt 00:00:21]} 5. Nc3 {[%clk 01:31:29]} {[%emt 00:00:32]}
d6 {[%clk 01:31:33]} {[%emt 00:00:24]} 6. h3 {[%clk 01:30:57]} {[%emt
00:01:03]} g5 {[%clk 01:30:39]} {[%emt 00:01:23]} 7. Nxg5 {[%clk 01:18:10]}
{[%emt 00:13:17]} hxg5 {[%clk 01:30:36]} {[%emt 00:00:33]} 8. Bxg5 {[%clk
01:18:34]} {[%emt 00:00:06]} Be7 {[%clk 01:28:25]} {[%emt 00:02:41]} 9. f4
{[%clk 01:16:16]} {[%emt 00:02:48]} Nh5 {[%clk 01:23:28]} {[%emt 00:05:27]} 10.
Qf3 {[%clk 01:05:35]} {[%emt 00:11:11]} Be6 {[%clk 01:03:13]} {[%emt 00:20:45]}
11. Bxe7 {[%clk 01:01:47]} {[%emt 00:04:18]} Qxe7 {[%clk 01:03:26]} {[%emt
00:00:17]} 12. f5 {[%clk 01:01:19]} {[%emt 00:00:58]} Bxc4 {[%clk 01:03:43]}
{[%emt 00:00:13]} 13. dxc4 {[%clk 01:01:40]} {[%emt 00:00:08]} Qh4+ {[%clk
01:02:42]} {[%emt 00:01:31]} 14. Kd2 {[%clk 00:59:02]} {[%emt 00:03:07]} Nd4
{[%clk 00:56:27]} {[%emt 00:06:46]} 15. Qe3 {[%emt 00:03:52]} Qf4 {[%clk
00:54:34]} 16. Qxf4 {[%emt 00:00:45]} Nxf4 {[%clk 00:54:42]} {[%emt 00:00:15]}
17. Nd5 {[%clk 00:57:07]} {[%emt 00:01:19]} Nxd5 {[%clk 00:53:13]} {[%emt
00:01:59]} 18. cxd5 {[%clk 00:57:30]} {[%emt 00:00:07]} c6 {[%clk 00:53:18]}
{[%emt 00:00:24]} 19. c3 {[%clk 00:57:39]} {[%emt 00:00:21]} Nb5 {[%clk
00:53:41]} {[%emt 00:00:07]} 20. a4 {[%clk 00:57:51]} {[%emt 00:00:18]} Nc7
{[%clk 00:54:05]} {[%emt 00:00:05]} 21. dxc6 {[%clk 00:57:09]} {[%emt
00:01:13]} bxc6 {[%clk 00:54:27]} {[%emt 00:00:08]} 22. Rae1 {[%clk 00:55:53]}
{[%emt 00:01:46]} Ke7 {[%clk 00:53:11]} {[%emt 00:01:47]} 23. g4 {[%clk
00:55:47]} {[%emt 00:00:36]} Rag8 {[%clk 00:53:07]} {[%emt 00:00:33]} 24. Ke3
{[%clk 00:55:34]} {[%emt 00:00:44]} Kf6 {[%clk 00:51:51]} {[%emt 00:01:45]} 25.
Kf3 {[%clk 00:55:34]} {[%emt 00:00:31]} Rh4 {[%clk 00:47:30]} {[%emt 00:04:51]}
26. Reg1 {[%clk 00:55:04]} {[%emt 00:01:00]} Kg5 {[%clk 00:46:56]} {[%emt
00:01:04]} 27. f6 {[%clk 00:54:44]} {[%emt 00:00:50]} Ne6 {[%clk 00:46:00]}
{[%emt 00:01:26]} 28. Rd1 {[%clk 00:53:37]} {[%emt 00:01:37]} Rd8 {[%clk
00:46:24]} {[%emt 00:00:06]} 29. Kg3 {[%clk 00:53:38]} {[%emt 00:00:29]} Nf4
{[%clk 00:43:54]} {[%emt 00:03:01]} 30. c4 {[%clk 00:53:46]} {[%emt 00:00:23]}
Ne2+ {[%clk 00:28:25]} {[%emt 00:15:58]} 31. Kf2 {[%clk 00:53:47]} {[%emt
00:00:28]} Nd4 {[%clk 00:27:45]} {[%emt 00:01:10]} 32. Kg3 {[%clk 00:52:01]}
{[%emt 00:02:17]} Rb8 {[%clk 00:27:41]} {[%emt 00:00:33]} 33. Rhf1 {[%clk
00:51:46]} {[%emt 00:00:44]} Rb3+ {[%clk 00:27:44]} {[%emt 00:00:28]} 34. Kg2
{[%clk 00:51:53]} {[%emt 00:00:23]} Rhxh3 {[%clk 00:27:28]} {[%emt 00:00:46]}
35. Rf2 {[%clk 00:49:56]} {[%emt 00:02:28]} Rbg3+ {[%clk 00:27:36]} {[%emt
00:00:21]} 0-1

[Event "NJSK 2023 Jeugd C"]
[Site "Almelo, Netherlands"]
[Date "2023.05.03"]
[Round "5.14"]
[White "Rooijakkers, Liam"]
[Black "Frederiks, Jesse"]
[Result "1/2-1/2"]
[TimeControl "90min/40moves + 30min + 30sec/move"]
[WhiteElo "1322"]
[BlackElo "1510"]

1. e4 {[%clk 01:30:57]} {[%emt 00:00:02]} e6 {[%clk 01:30:59]} {[%emt
00:00:01]} 2. d4 {[%clk 01:31:18]} {[%emt 00:00:09]} d5 {[%clk 01:31:24]}
{[%emt 00:00:05]} 3. Nc3 {[%clk 01:31:31]} {[%emt 00:00:18]} Bb4 {[%clk
01:31:44]} {[%emt 00:00:09]} 4. e5 {[%clk 01:31:42]} {[%emt 00:00:20]} c5
{[%clk 01:32:02]} {[%emt 00:00:11]} 5. a3 {[%clk 01:32:00]} {[%emt 00:00:13]}
Bxc3+ {[%clk 01:32:24]} {[%emt 00:00:07]} 6. bxc3 {[%clk 01:32:19]} {[%emt
00:00:11]} Ne7 {[%clk 01:32:45]} {[%emt 00:00:09]} 7. Qg4 {[%clk 01:32:24]}
{[%emt 00:00:26]} Ng6 {[%clk 01:32:34]} {[%emt 00:00:40]} 8. Bd3 {[%clk
01:31:10]} {[%emt 00:01:45]} Nc6 {[%clk 01:32:25]} {[%emt 00:00:38]} 9. Ne2
{[%clk 01:30:08]} {[%emt 00:01:32]} c4 {[%clk 01:31:11]} {[%emt 00:01:44]} 10.
Bxg6 {[%clk 01:30:16]} {[%emt 00:00:22]} hxg6 {[%clk 01:31:36]} {[%emt
00:00:05]} 11. a4 {[%clk 01:28:32]} {[%emt 00:02:14]} Bd7 {[%clk 01:29:15]}
{[%emt 00:02:50]} 12. Ba3 {[%clk 01:26:06]} {[%emt 00:02:57]} Ne7 {[%clk
01:28:19]} {[%emt 00:01:25]} 13. Qg5 {[%clk 01:24:22]} {[%emt 00:02:14]} Nf5
{[%clk 01:26:47]} {[%emt 00:02:02]} 14. Qxd8+ {[%clk 01:23:48]} {[%emt
00:01:04]} Kxd8 {[%clk 01:26:53]} {[%emt 00:00:24]} 15. Bc1 {[%clk 01:21:23]}
{[%emt 00:02:56]} Bc6 {[%clk 01:24:37]} {[%emt 00:02:46]} 16. Bf4 {[%clk
01:16:06]} {[%emt 00:05:47]} Kd7 {[%clk 01:22:22]} {[%emt 00:02:45]} 17. Ng3
{[%clk 01:15:19]} {[%emt 00:01:16]} Rh7 {[%clk 01:14:51]} {[%emt 00:08:00]} 18.
Nxf5 {[%clk 01:14:47]} {[%emt 00:01:02]} gxf5 {[%clk 01:15:14]} {[%emt
00:00:08]} 19. Ke2 {[%clk 01:12:52]} {[%emt 00:02:25]} Rah8 {[%clk 01:13:27]}
{[%emt 00:02:15]} 20. h3 {[%clk 01:12:00]} {[%emt 00:01:23]} Rh5 {[%clk
01:11:45]} {[%emt 00:02:12]} 21. Rhg1 {[%clk 01:00:52]} {[%emt 00:11:39]} Rg8
{[%clk 01:00:03]} {[%emt 00:12:12]} 22. Bc1 {[%clk 00:57:59]} {[%emt 00:03:23]}
g5 {[%clk 00:57:38]} {[%emt 00:02:55]} 23. f3 {[%clk 00:55:37]} {[%emt
00:02:52]} g4 {[%clk 00:56:54]} {[%emt 00:01:13]} 24. fxg4 {[%clk 00:54:31]}
{[%emt 00:01:36]} fxg4 {[%clk 00:57:14]} {[%emt 00:00:10]} 25. hxg4 {[%clk
00:54:39]} {[%emt 00:00:22]} Rxg4 {[%clk 00:57:38]} {[%emt 00:00:07]} 26. Kf3
{[%clk 00:54:45]} {[%emt 00:00:23]} Rg7 {[%clk 00:56:33]} {[%emt 00:01:35]} 27.
Bf4 {[%clk 00:53:03]} {[%emt 00:01:01]} Rgh7 {[%clk 00:56:44]} {[%emt
00:01:30]} 28. a5 {[%clk 00:51:35]} {[%emt 00:01:59]} Ke8 {[%clk 00:52:18]}
{[%emt 00:04:56]} 29. Raf1 {[%clk 00:48:39]} {[%emt 00:03:25]} Kf8 {[%clk
00:43:24]} {[%emt 00:09:25]} 30. Ke3 {[%clk 00:39:49]} {[%emt 00:09:19]} Kg8
{[%clk 00:35:43]} {[%emt 00:08:11]} 31. Rf3 {[%clk 00:37:32]} {[%emt 00:02:47]}
Rh1 {[%clk 00:34:32]} {[%emt 00:01:41]} 32. Rff1 {[%clk 00:37:41]} {[%emt
00:00:21]} Rxg1 {[%clk 00:34:54]} {[%emt 00:00:08]} 33. Rxg1 {[%clk 00:38:09]}
{[%emt 00:00:02]} Kf8 {[%clk 00:33:00]} {[%emt 00:02:24]} 34. Kd2 {[%clk
00:37:12]} {[%emt 00:01:28]} Rh5 {[%clk 00:32:00]} {[%emt 00:01:29]} 35. Rf1
{[%clk 00:37:13]} {[%emt 00:00:29]} Kg7 {[%clk 00:31:09]} {[%emt 00:01:22]} 36.
Ke2 {[%clk 00:34:26]} {[%emt 00:03:17]} Kg6 {[%clk 00:27:25]} {[%emt 00:04:14]}
37. Ke3 {[%clk 00:30:48]} {[%emt 00:04:06]} Rh7 {[%clk 00:24:39]} {[%emt
00:03:18]} 38. Kf3 {[%clk 00:29:44]} {[%emt 00:01:33]} Kg7 {[%clk 00:24:29]}
{[%emt 00:00:40]} 39. Bg5 {[%clk 00:29:31]} {[%emt 00:00:43]} Kf8 {[%clk
00:23:36]} {[%emt 00:01:24]} 40. Bc1 {[%clk 00:28:23]} {[%emt 00:01:38]} Ke8
{[%clk 00:23:35]} {[%emt 00:00:31]} 41. Kg4 {[%clk 00:27:43]} {[%emt 00:01:09]}
Rg7+ {[%clk 00:23:49]} {[%emt 00:00:17]} 42. Kf3 {[%clk 00:28:09]} {[%emt
00:00:05]} Kd7 {[%clk 00:23:19]} {[%emt 00:01:00]} 43. Ba3 {[%clk 00:28:11]}
{[%emt 00:00:29]} Ba4 {[%clk 00:21:29]} {[%emt 00:02:19]} 44. Rf2 {[%clk
00:27:22]} {[%emt 00:01:19]} Rg5 {[%clk 00:19:51]} {[%emt 00:02:01]} 45. g4
{[%clk 00:27:08]} {[%emt 00:00:51]} Rg6 {[%clk 00:18:39]} {[%emt 00:01:43]} 46.
Kg3 {[%clk 00:26:49]} {[%emt 00:00:49]} Rg7 {[%clk 00:18:24]} {[%emt 00:00:45]}
47. Rh2 {[%clk 00:26:45]} {[%emt 00:00:34]} 1/2-1/2

[Event "NJSK 2023 Jeugd C"]
[Site "Almelo, Netherlands"]
[Date "2023.05.03"]
[Round "5.15"]
[White "Zootjes, Aäron"]
[Black "De Wit, Evan"]
[Result "1/2-1/2"]
[TimeControl "90min/40moves + 30min + 30sec/move"]
[WhiteElo "1172"]
[BlackElo "1563"]

1. e4 {[%clk 01:30:58]} c5 {[%clk 01:30:58]} {[%emt 00:00:02]} 2. c3 {[%clk
01:31:17]} {[%emt 00:00:11]} Nf6 {[%clk 01:31:20]} {[%emt 00:00:08]} 3. e5
{[%clk 01:31:31]} {[%emt 00:00:16]} Nd5 {[%clk 01:31:44]} {[%emt 00:00:06]} 4.
d4 {[%clk 01:31:46]} {[%emt 00:00:16]} e6 {[%clk 01:31:32]} {[%emt 00:00:42]} 5.
Nf3 {[%clk 01:31:03]} {[%emt 00:01:13]} Nc6 {[%clk 01:31:42]} {[%emt 00:00:20]}
6. Bd3 {[%clk 01:30:21]} {[%emt 00:01:12]} Be7 {[%clk 01:31:46]} {[%emt
00:00:25]} 7. O-O {[%clk 01:30:31]} {[%emt 00:00:21]} cxd4 {[%clk 01:31:16]}
{[%emt 00:01:01]} 8. cxd4 {[%clk 01:30:18]} {[%emt 00:00:43]} O-O {[%clk
01:30:43]} {[%emt 00:01:02]} 9. Bd2 {[%clk 01:29:34]} {[%emt 00:01:14]} h6
{[%clk 01:30:21]} {[%emt 00:00:52]} 10. Nc3 {[%clk 01:29:23]} {[%emt 00:00:41]}
Nxc3 {[%clk 01:27:37]} {[%emt 00:03:14]} 11. Bxc3 {[%clk 01:29:40]} {[%emt
00:00:13]} d5 {[%clk 01:27:51]} {[%emt 00:00:16]} 12. Qd2 {[%clk 01:27:51]}
{[%emt 00:02:19]} Qb6 {[%clk 01:27:30]} {[%emt 00:00:51]} 13. a3 {[%clk
01:27:31]} {[%emt 00:00:51]} Bd7 {[%clk 01:27:28]} {[%emt 00:00:32]} 14. Rab1
{[%clk 01:24:44]} {[%emt 00:03:18]} a5 {[%clk 01:27:30]} {[%emt 00:00:27]} 15.
b4 {[%clk 01:24:02]} {[%emt 00:01:12]} axb4 {[%clk 01:27:31]} {[%emt 00:00:29]}
16. axb4 {[%clk 01:24:23]} {[%emt 00:00:09]} Na7 {[%clk 01:27:21]} {[%emt
00:00:39]} 17. b5 {[%clk 01:20:01]} {[%emt 00:04:54]} Qd8 {[%clk 01:23:15]}
{[%emt 00:04:34]} 18. Bb4 {[%clk 01:11:51]} {[%emt 00:08:41]} b6 {[%clk
01:22:44]} {[%emt 00:01:00]} 19. Rfc1 {[%clk 01:10:32]} {[%emt 00:01:49]} Re8
{[%clk 01:21:45]} {[%emt 00:01:29]} 20. h3 {[%clk 01:09:12]} {[%emt 00:01:50]}
Qb8 {[%clk 01:15:36]} {[%emt 00:06:39]} 21. Bxe7 {[%clk 01:07:29]} {[%emt
00:02:14]} Rxe7 {[%clk 01:15:56]} {[%emt 00:00:09]} 22. Nh2 {[%clk 01:06:58]}
{[%emt 00:01:01]} Qe8 {[%clk 01:14:23]} {[%emt 00:02:03]} 23. Ng4 {[%clk
01:05:03]} {[%emt 00:02:26]} Qf8 {[%clk 01:10:29]} {[%emt 00:04:24]} 24. Qe3
{[%clk 00:58:28]} {[%emt 00:07:05]} Ree8 {[%clk 01:06:46]} {[%emt 00:04:13]} 25.
Rc7 {[%clk 00:55:36]} {[%emt 00:03:22]} Red8 {[%clk 01:02:16]} {[%emt
00:04:59]} 26. Qg3 {[%clk 00:54:47]} {[%emt 00:01:20]} Kh8 {[%clk 00:59:33]}
{[%emt 00:03:13]} 27. Qh4 {[%clk 00:51:31]} {[%emt 00:03:46]} Qa3 {[%clk
00:46:54]} {[%emt 00:13:07]} 28. Bc2 {[%clk 00:49:13]} {[%emt 00:02:48]} Nxb5
{[%clk 00:39:40]} {[%emt 00:07:45]} 29. Nxh6 {[%clk 00:45:37]} {[%emt
00:04:06]} Nxc7 {[%emt 00:04:21]} 30. Nxf7+ {[%clk 00:45:56]} {[%emt 00:00:09]}
Kg8 {[%clk 00:34:41]} {[%emt 00:01:42]} 31. Nxd8 {[%clk 00:44:42]} {[%emt
00:01:44]} Qc3 {[%clk 00:31:15]} {[%emt 00:03:56]} 32. Qh7+ {[%clk 00:39:30]}
{[%emt 00:05:42]} Kf8 {[%clk 00:31:07]} {[%emt 00:00:37]} 33. Qh8+ {[%clk
00:38:53]} {[%emt 00:01:08]} Ke7 {[%clk 00:31:27]} {[%emt 00:00:10]} 34. Qh4+
{[%clk 00:38:21]} {[%emt 00:01:02]} Kf8 {[%clk 00:31:23]} {[%emt 00:00:33]} 35.
Bg6 {[%clk 00:36:16]} {[%emt 00:02:36]} Qd2 {[%clk 00:29:45]} {[%emt 00:02:07]}
36. Qh8+ {[%clk 00:23:25]} {[%emt 00:13:22]} Ke7 {[%clk 00:29:51]} {[%emt
00:00:24]} 37. Qh4+ {[%clk 00:23:36]} {[%emt 00:00:11]} 1/2-1/2

[Event "NJSK 2023 Jeugd C"]
[Site "Almelo, Netherlands"]
[Date "2023.05.04"]
[Round "6.1"]
[White "Madularea, David"]
[Black "Wink, Luka"]
[Result "1/2-1/2"]
[TimeControl "90min/40moves + 30min + 30sec/move"]
[WhiteElo "1895"]
[BlackElo "1849"]

1. e4 {[%clk 01:30:59]} c5 {[%clk 01:30:59]} 2. Nf3 {[%clk 01:31:28]} {[%emt
00:00:01]} d6 {[%clk 01:31:26]} {[%emt 00:00:03]} 3. d4 {[%clk 01:31:50]}
{[%emt 00:00:08]} cxd4 {[%clk 01:31:55]} {[%emt 00:00:01]} 4. Nxd4 {[%clk
01:32:18]} {[%emt 00:00:02]} Nf6 {[%clk 01:32:24]} 5. Nc3 {[%clk 01:32:43]}
{[%emt 00:00:05]} g6 {[%clk 01:32:48]} {[%emt 00:00:06]} 6. Be3 {[%clk
01:33:10]} {[%emt 00:00:03]} Bg7 {[%clk 01:33:14]} {[%emt 00:00:05]} 7. f3
{[%clk 01:33:36]} {[%emt 00:00:04]} O-O {[%clk 01:33:39]} {[%emt 00:00:05]} 8.
Qd2 {[%clk 01:34:04]} {[%emt 00:00:01]} Nc6 {[%clk 01:34:04]} {[%emt 00:00:06]}
9. O-O-O {[%clk 01:34:29]} {[%emt 00:00:04]} d5 {[%clk 01:34:32]} {[%emt
00:00:02]} 10. exd5 {[%clk 01:34:52]} {[%emt 00:00:08]} Nxd5 {[%clk 01:34:59]}
{[%emt 00:00:03]} 11. Nxc6 {[%clk 01:35:15]} {[%emt 00:00:06]} bxc6 {[%clk
01:35:26]} {[%emt 00:00:03]} 12. Bd4 {[%clk 01:35:39]} {[%emt 00:00:07]} e5
{[%clk 01:35:54]} {[%emt 00:00:02]} 13. Bc5 {[%clk 01:36:05]} {[%emt 00:00:05]}
Re8 {[%clk 01:36:21]} {[%emt 00:00:02]} 14. Ne4 {[%clk 01:36:27]} {[%emt
00:00:07]} Qc7 {[%clk 01:36:45]} {[%emt 00:00:06]} 15. h4 {[%clk 01:36:55]}
{[%emt 00:00:03]} f5 {[%clk 01:37:08]} {[%emt 00:00:07]} 16. Nd6 {[%clk
01:37:21]} {[%emt 00:00:04]} Rd8 {[%clk 01:37:34]} {[%emt 00:00:04]} 17. Nxc8
{[%clk 01:37:46]} {[%emt 00:00:05]} Raxc8 {[%clk 01:37:59]} {[%emt 00:00:04]}
18. h5 {[%clk 01:38:10]} {[%emt 00:00:06]} Nb6 {[%clk 01:38:24]} {[%emt
00:00:05]} 19. Bxb6 {[%clk 01:38:35]} {[%emt 00:00:05]} Rxd2 {[%clk 01:38:51]}
{[%emt 00:00:03]} 20. Bc4+ {[%clk 01:38:58]} {[%emt 00:00:08]} Kf8 {[%clk
01:39:18]} {[%emt 00:00:04]} 21. Bxc7 {[%clk 01:39:22]} {[%emt 00:00:06]} Rxd1+
{[%clk 01:39:42]} {[%emt 00:00:05]} 22. Rxd1 {[%clk 01:39:48]} {[%emt
00:00:04]} Rxc7 {[%clk 01:40:10]} {[%emt 00:00:02]} 23. hxg6 {[%clk 01:40:10]}
{[%emt 00:00:07]} Bh6+ {[%clk 01:40:37]} {[%emt 00:00:04]} 24. Kb1 {[%clk
01:40:35]} {[%emt 00:00:05]} hxg6 {[%clk 01:40:56]} {[%emt 00:00:11]} 25. Rd6
{[%clk 01:41:04]} Kg7 {[%clk 01:41:17]} {[%emt 00:00:09]} 26. b4 {[%clk
01:41:30]} {[%emt 00:00:05]} c5 {[%clk 01:39:55]} {[%emt 00:01:52]} 27. b5
{[%clk 01:39:32]} {[%emt 00:02:28]} Re7 {[%clk 01:34:50]} {[%emt 00:05:36]} 28.
a4 {[%clk 01:24:12]} {[%emt 00:15:51]} e4 {[%clk 01:28:53]} {[%emt 00:06:27]}
29. a5 {[%clk 01:22:36]} {[%emt 00:02:07]} Bf4 {[%clk 01:22:52]} {[%emt
00:06:30]} 30. Ra6 {[%clk 01:18:47]} {[%emt 00:04:19]} e3 {[%clk 01:17:15]}
{[%emt 00:06:07]} 31. Be2 {[%clk 01:12:37]} {[%emt 00:06:39]} Kh6 {[%clk
01:04:42]} {[%emt 00:13:04]} 32. b6 {[%clk 00:53:05]} {[%emt 00:20:03]} Bb8
{[%clk 00:57:49]} {[%emt 00:07:23]} 33. bxa7 {[%clk 00:40:55]} {[%emt
00:12:40]} Bxa7 {[%clk 00:56:31]} {[%emt 00:01:49]} 34. Rc6 {[%clk 00:39:19]}
{[%emt 00:02:05]} Kg7 {[%clk 00:51:34]} {[%emt 00:05:27]} 35. Kb2 {[%clk
00:34:43]} {[%emt 00:05:06]} 1/2-1/2

[Event "NJSK 2023 Jeugd C"]
[Site "Almelo, Netherlands"]
[Date "2023.05.04"]
[Round "6.2"]
[White "Arnold, Rhys"]
[Black "Groenewoud, Joel"]
[Result "1-0"]
[TimeControl "90min/40moves + 30min + 30sec/move"]
[WhiteElo "2003"]
[BlackElo "1990"]

1. e4 {[%clk 01:30:59]} {[%emt 00:00:01]} c6 {[%clk 01:30:56]} {[%emt
00:00:05]} 2. d4 {[%clk 01:31:27]} {[%emt 00:00:02]} d5 {[%clk 01:31:22]}
{[%emt 00:00:04]} 3. e5 {[%clk 01:31:53]} {[%emt 00:00:04]} c5 {[%clk
01:31:48]} {[%emt 00:00:03]} 4. dxc5 {[%clk 01:32:21]} {[%emt 00:00:02]} Nc6
{[%clk 01:32:13]} {[%emt 00:00:05]} 5. Nf3 {[%clk 01:32:47]} {[%emt 00:00:05]}
Bg4 {[%clk 01:32:38]} {[%emt 00:00:05]} 6. Bb5 {[%clk 01:33:08]} {[%emt
00:00:09]} e6 {[%clk 01:33:02]} {[%emt 00:00:07]} 7. b4 {[%clk 01:33:21]}
{[%emt 00:00:17]} a5 {[%clk 01:33:07]} {[%emt 00:00:24]} 8. c3 {[%clk
01:33:19]} {[%emt 00:00:32]} Nge7 {[%clk 01:33:32]} {[%emt 00:00:06]} 9. Nbd2
{[%clk 01:30:52]} {[%emt 00:02:57]} Ng6 {[%clk 01:31:08]} {[%emt 00:02:53]} 10.
h3 {[%clk 01:29:37]} {[%emt 00:01:45]} Bxf3 {[%clk 01:30:28]} {[%emt 00:01:10]}
11. Nxf3 {[%clk 01:30:03]} {[%emt 00:00:04]} axb4 {[%clk 01:25:14]} {[%emt
00:05:45]} 12. cxb4 {[%clk 01:29:58]} {[%emt 00:00:35]} Be7 {[%clk 01:25:14]}
{[%emt 00:00:30]} 13. O-O {[%clk 01:27:37]} {[%emt 00:02:51]} O-O {[%clk
01:25:13]} {[%emt 00:00:32]} 14. Bxc6 {[%clk 01:27:44]} {[%emt 00:00:23]} bxc6
{[%clk 01:25:38]} {[%emt 00:00:05]} 15. Bb2 {[%clk 01:23:38]} {[%emt 00:04:36]}
Qc7 {[%clk 01:20:56]} {[%emt 00:05:12]} 16. a4 {[%clk 01:15:16]} {[%emt
00:08:52]} f6 {[%clk 01:11:28]} {[%emt 00:09:58]} 17. Re1 {[%clk 01:12:55]}
{[%emt 00:02:50]} Qb7 {[%clk 01:02:18]} {[%emt 00:09:41]} 18. Qd2 {[%clk
00:53:05]} {[%emt 00:20:21]} Rab8 {[%clk 00:44:47]} {[%emt 00:18:02]} 19. exf6
{[%clk 00:36:50]} {[%emt 00:16:44]} Bxf6 {[%clk 00:44:59]} {[%emt 00:00:18]} 20.
Bxf6 {[%clk 00:31:51]} {[%emt 00:05:29]} Rxf6 {[%clk 00:45:14]} {[%emt
00:00:15]} 21. Rab1 {[%clk 00:31:27]} {[%emt 00:00:53]} Qc7 {[%clk 00:34:51]}
{[%emt 00:10:54]} 22. Qc3 {[%clk 00:28:48]} {[%emt 00:03:10]} Rbf8 {[%clk
00:26:53]} {[%emt 00:08:28]} 23. Re3 {[%clk 00:23:35]} {[%emt 00:05:43]} Qf4
{[%clk 00:08:46]} {[%emt 00:18:37]} 24. Qe1 {[%clk 00:21:51]} {[%emt 00:02:14]}
Qc4 {[%clk 00:05:31]} {[%emt 00:03:45]} 25. Qe2 {[%clk 00:18:15]} {[%emt
00:04:06]} Qf4 {[%clk 00:04:14]} {[%emt 00:01:47]} 26. Rb2 {[%clk 00:17:42]}
{[%emt 00:01:03]} Kh8 {[%clk 00:01:16]} {[%emt 00:03:27]} 27. a5 {[%clk
00:11:51]} {[%emt 00:06:21]} Ra8 {[%clk 00:00:38]} {[%emt 00:01:08]} 28. Ne5
{[%clk 00:09:47]} {[%emt 00:02:34]} Nxe5 {[%clk 00:00:34]} {[%emt 00:00:34]} 29.
Rxe5 {[%clk 00:10:13]} {[%emt 00:00:04]} Qc1+ {[%clk 00:00:36]} {[%emt
00:00:29]} 30. Kh2 {[%clk 00:10:37]} {[%emt 00:00:05]} Qc3 {[%clk 00:00:51]}
{[%emt 00:00:14]} 31. Re3 {[%clk 00:10:05]} {[%emt 00:01:02]} Qd4 {[%clk
00:00:49]} {[%emt 00:00:32]} 32. Qd2 {[%clk 00:07:23]} {[%emt 00:03:13]} Qc4
{[%clk 00:00:42]} {[%emt 00:00:37]} 33. Rc2 {[%clk 00:07:28]} {[%emt 00:00:24]}
Qb5 {[%clk 00:00:56]} {[%emt 00:00:17]} 34. Qd4 {[%clk 00:05:10]} {[%emt
00:02:48]} h6 {[%clk 00:00:56]} {[%emt 00:00:29]} 35. Rb2 {[%clk 00:05:07]}
{[%emt 00:00:34]} Raf8 {[%clk 00:00:41]} {[%emt 00:00:45]} 36. Kg1 {[%clk
00:04:09]} {[%emt 00:01:27]} Qa4 {[%clk 00:00:38]} {[%emt 00:00:33]} 37. Re1
{[%clk 00:04:07]} {[%emt 00:00:33]} Rf4 {[%clk 00:00:33]} {[%emt 00:00:35]} 38.
Qc3 {[%clk 00:04:10]} {[%emt 00:00:27]} Rc4 {[%clk 00:00:37]} {[%emt 00:00:26]}
39. Qd2 {[%clk 00:04:14]} {[%emt 00:00:26]} Rf6 {[%clk 00:00:34]} {[%emt
00:00:32]} 40. Reb1 {[%clk 00:03:15]} {[%emt 00:01:30]} Qb5 {[%clk 00:00:41]}
{[%emt 00:00:23]} 41. Qe2 {[%clk 00:03:35]} {[%emt 00:00:09]} Qb7 {[%clk
00:00:34]} {[%emt 00:00:38]} 42. f3 {[%clk 00:03:17]} {[%emt 00:00:48]} Qc7
{[%clk 00:00:37]} {[%emt 00:00:27]} 43. Rc2 {[%clk 00:03:09]} {[%emt 00:00:38]}
Rcf4 {[%clk 00:00:32]} {[%emt 00:00:36]} 44. b5 {[%clk 00:03:06]} {[%emt
00:00:33]} cxb5 {[%clk 00:00:34]} {[%emt 00:00:28]} 45. Qxb5 {[%clk 00:03:29]}
{[%emt 00:00:07]} Qe5 {[%clk 00:00:42]} {[%emt 00:00:23]} 46. Qb8+ {[%clk
00:03:48]} {[%emt 00:00:10]} Qxb8 {[%clk 00:01:02]} {[%emt 00:00:10]} 47. Rxb8+
{[%clk 00:04:16]} {[%emt 00:00:03]} Kh7 {[%clk 00:00:35]} {[%emt 00:00:57]} 48.
c6 {[%clk 00:04:37]} {[%emt 00:00:09]} 1-0